bitfinex-derivatives/quotes_ETHF0:USTF0_20210407
["timestamp","ask_amount","ask_price","bid_price","bid_amount"]
[1617795798465,103.5198,1976.2,1972.6,77.5362]
[1617795798680,2.90695,1974.1,1973.9,2.90695]
[1617795798821,3.0597,1974.1,1973.9,2.90695]
[1617795799958,2.3171,1974.9,1973.9,2.90695]
[1617795800324,2.3171,1974.9,1972.7,2.0]
[1617795800823,2.90695,1974.9,1974.8,2.90695]
[1617795801026,27.4065,1976.1,1974.8,2.90695]
[1617795801227,14.0889,1976.1,1974.8,2.90695]
[1617795801466,14.0889,1976.1,1973.1,2.0]
[1617795801632,30.0,1976.0,1973.1,2.0]
[1617795802027,32.0,1976.0,1973.1,2.0]
[1617795802229,30.0,1976.0,1973.1,2.0]
[1617795802827,30.0,1975.8,1974.7,2.90695]
[1617795803137,30.0,1975.8,1973.1,2.0]
[1617795803138,30.0,1975.8,1974.0,2.8578]
[1617795804328,30.0,1975.8,1973.5,2.0]
[1617795804730,2.90695,1974.7,1974.6,2.90695]
[1617795804944,2.90695,1974.7,1973.1,2.0]
[1617795806352,2.90695,1974.7,1973.2,2.0]
[1617795806635,30.0,1975.8,1974.6,2.90695]
[1617795806636,2.90695,1974.8,1974.6,2.90695]
[1617795806946,30.0,1976.0,1974.6,2.90695]
[1617795808078,13.3652,1976.1,1974.6,2.90695]
[1617795808364,43.3652,1976.1,1974.6,2.90695]
[1617795808553,30.0,1976.1,1974.6,2.90695]
[1617795808749,30.0,1976.1,1975.1,2.90695]
[1617795808958,30.0,1976.1,1974.4,2.0]
[1617795809148,32.7383,1976.1,1974.4,2.0]
[1617795809363,32.7383,1976.1,1974.0,62.5391]
[1617795809734,79.0858,1975.9,1972.1,80.8222]
[1617795810036,30.0,1975.8,1972.1,80.8222]
[1617795810234,32.0,1975.8,1972.1,80.8222]
[1617795810435,45.0795,1975.8,1972.1,80.8222]
[1617795810639,58.0516,1975.8,1974.2,2.90695]
[1617795810838,56.0516,1975.8,1974.2,2.90695]
[1617795811037,42.9721,1975.8,1974.2,2.90695]
[1617795811637,42.9721,1975.8,1974.3,2.0]
[1617795811839,42.9721,1975.8,1974.3,3.8748]
[1617795812037,12.9721,1975.8,1974.3,3.8748]
[1617795812236,30.0,1976.3,1974.3,3.8748]
[1617795812441,27.4878,1976.9,1974.3,3.8748]
[1617795812641,27.4878,1976.9,1975.4,2.90695]
[1617795812837,27.4878,1976.9,1975.4,4.96455]
[1617795813138,43.8551,1976.9,1975.4,4.96455]
[1617795813637,84.1902,1978.3,1975.4,4.96455]
[1617795813848,2.0,1978.2,1975.5,2.0]
[1617795814256,30.0,1978.1,1975.5,2.0]
[1617795814543,30.0,1977.9,1975.5,2.0]
[1617795814846,32.0,1977.8,1975.5,2.0]
[1617795815039,32.0,1977.8,1975.4,2.0576]
[1617795815941,32.0,1977.8,1975.5,2.0]
[1617795816742,32.0,1977.8,1976.3,2.90695]
[1617795817046,32.0,1977.8,1976.3,5.27435]
[1617795817842,2.0,1977.8,1976.3,5.27435]
[1617795818043,0.02,1978.0,1976.3,5.27435]
[1617795818343,13.4517,1978.7,1976.3,7.27435]
[1617795818745,13.4517,1978.7,1977.1,2.90695]
[1617795818944,13.4517,1978.7,1977.1,4.91565]
[1617795819145,4.08888063,1979.4,1977.1,4.91565]
[1617795819546,43.1397,1978.8,1977.1,4.91565]
[1617795819947,30.0,1978.6,1977.1,4.91565]
[1617795820148,30.0,1978.4,1977.1,4.91565]
[1617795820348,32.0,1978.4,1977.1,4.91565]
[1617795820662,32.0,1978.4,1977.3,2.90695]
[1617795820864,2.0,1978.4,1977.3,2.90695]
[1617795821249,32.0,1978.4,1977.3,2.90695]
[1617795821450,32.0,1978.4,1976.2,74.3171]
[1617795821751,34.7886,1978.4,1976.2,74.3171]
[1617795821951,34.7886,1978.4,1971.4,6.29571764]
[1617795822151,30.0,1978.1,1974.7,60.2151]
[1617795822507,30.0,1977.9,1974.8,2.0]
[1617795822751,30.0,1977.7,1976.2,2.90695]
[1617795822951,2.0014,1977.9,1976.2,2.90695]
[1617795822952,32.0,1977.6,1976.2,2.90695]
[1617795823652,32.0,1977.6,1974.8,2.0]
[1617795823852,32.0,1977.6,1974.7,60.2151]
[1617795824772,32.0,1977.6,1974.7,62.2151]
[1617795825051,30.0,1977.6,1974.7,62.2151]
[1617795825259,30.0,1977.4,1974.7,62.2151]
[1617795825454,30.0,1977.2,1974.7,62.2151]
[1617795825685,30.0,1977.0,1974.7,2.0]
[1617795825902,65.4114,1976.9,1974.7,2.0]
[1617795826066,30.0,1976.8,1974.7,2.0]
[1617795826867,2.0,1977.3,1975.9,2.90695]
[1617795826868,2.90695,1976.3,1975.9,2.90695]
[1617795827056,2.90695,1976.3,1974.8,80.0134]
[1617795827365,2.90695,1976.3,1974.9,2.0]
[1617795828356,2.90695,1976.3,1974.9,4.8329]
[1617795828555,2.0,1977.3,1974.9,4.8329]
[1617795828756,2.0,1977.5,1976.6,2.90695]
[1617795828956,1.0163,1977.5,1976.6,2.90695]
[1617795829156,109.207,1977.6,1974.9,4.8329]
[1617795829356,30.0,1977.4,1974.9,4.8329]
[1617795829583,30.0,1977.4,1974.9,2.0]
[1617795830057,30.0,1977.4,1974.8,77.9272]
[1617795830362,30.0,1977.4,1974.9,2.0]
[1617795830800,2.90695,1975.7,1974.8,77.9272]
[1617795830990,5.17935,1975.7,1973.6,1.0082]
[1617795831160,5.17935,1975.7,1973.4,84.6606]
[1617795831460,5.17935,1975.7,1973.5,2.0]
[1617795832862,2.90695,1975.7,1975.6,2.90695]
[1617795835666,43.4577,1977.3,1975.6,2.90695]
[1617795836766,13.4577,1977.3,1976.0,2.90695]
[1617795837067,43.4577,1977.3,1976.0,2.90695]
[1617795837268,30.0,1977.3,1976.0,2.90695]
[1617795837568,30.0,1977.3,1974.9,2.0]
[1617795837767,32.4596,1977.3,1974.9,2.0]
[1617795838368,32.4596,1977.3,1974.8,78.7761]
[1617795838768,32.4596,1977.3,1975.4,2.90695]
[1617795839015,30.0,1976.5,1974.1,2.0]
[1617795839172,32.6987,1976.5,1974.1,2.0]
[1617795840398,45.4892,1976.5,1974.1,2.0]
[1617795840871,45.4892,1976.5,1974.9,2.90695]
[1617795842873,2.90695,1975.0,1974.9,2.90695]
[1617795844178,5.33965,1975.0,1974.9,2.90695]
[1617795846177,2.90695,1975.0,1974.9,2.90695]
[1617795846980,2.90695,1975.0,1974.7,2.90695]
[1617795847178,5.94705,1975.0,1974.7,2.90695]
[1617795848382,68.53415,1975.0,1973.8,2.0]
[1617795848784,65.6272,1975.0,1974.0,2.90695]
[1617795849380,95.6272,1975.0,1973.8,2.0]
[1617795849584,95.6272,1975.0,1972.0,85.946]
[1617795849781,95.6272,1975.0,1972.5,2.0]
[1617795850483,2.0,1974.9,1972.5,2.0]
[1617795850781,74.2597,1974.2,1972.5,2.0]
[1617795850988,77.2187,1974.2,1973.3,2.90695]
[1617795851200,107.2187,1974.2,1973.3,2.90695]
[1617795851390,107.2187,1974.2,1972.1,2.0]
[1617795852081,107.2187,1974.2,1972.0,2.0]
[1617795852539,30.0,1974.0,1972.0,2.0]
[1617795852685,2.0,1973.9,1972.0,2.0]
[1617795852885,30.0,1973.8,1972.5,2.90695]
[1617795853234,30.0,1973.8,1972.0,2.0]
[1617795853235,32.231,1973.8,1972.0,2.0]
[1617795853423,81.626,1972.7,1972.0,2.0]
[1617795853613,83.9068,1972.7,1970.9,2.0]
[1617795854486,83.9068,1972.7,1970.5,2.0]
[1617795854686,83.9068,1972.7,1971.0,2.0]
[1617795854888,2.90695,1972.0,1971.7,2.90695]
[1617795855089,5.25475,1972.0,1971.7,2.90695]
[1617795856090,2.3478,1972.0,1970.4,2.0]
[1617795857090,2.3478,1972.0,1971.6,2.90695]
[1617795858990,2.3478,1972.0,1970.2,2.0]
[1617795858991,2.90695,1971.7,1970.2,2.0]
[1617795859291,82.9114,1971.2,1970.2,2.0]
[1617795859593,85.6617,1971.2,1970.2,2.0]
[1617795860896,85.6617,1971.2,1971.0,2.90695]
[1617795861296,85.6617,1971.2,1970.2,2.0]
[1617795862410,115.6617,1971.2,1970.2,2.0]
[1617795862797,32.7503,1971.2,1970.2,2.0]
[1617795862996,2.90695,1970.3,1970.2,2.0]
[1617795863196,4.83605,1970.3,1970.2,2.0]
[1617795864896,2.90695,1970.3,1970.2,4.90695]
[1617795865597,75.3051,1971.4,1970.2,4.90695]
[1617795865897,75.3051,1971.4,1970.2,6.90695]
[1617795866605,75.3051,1971.4,1970.2,4.90695]
[1617795867000,75.3051,1971.4,1971.3,2.90695]
[1617795867399,75.3051,1971.4,1970.2,3.0029]
[1617795867700,75.3051,1971.4,1970.2,2.0]
[1617795868900,78.21205,1971.4,1971.3,2.90695]
[1617795869121,78.21205,1971.4,1970.2,2.0]
[1617795871003,75.3051,1971.4,1970.4,2.90695]
[1617795871904,105.3051,1971.4,1970.4,2.90695]
[1617795872103,75.3051,1971.4,1970.4,2.90695]
[1617795872804,75.3051,1971.4,1970.4,5.23925]
[1617795873114,75.3051,1971.4,1971.2,2.90695]
[1617795873318,75.3051,1971.4,1971.2,5.28735]
[1617795874613,27.7783,1972.5,1971.2,5.28735]
[1617795874806,14.1172,1972.5,1971.2,5.28735]
[1617795875010,30.0,1973.3,1971.8,2.90695]
[1617795875207,74.3479,1973.0,1971.8,5.95745]
[1617795877030,74.3479,1973.0,1972.9,2.90695]
[1617795877212,71.5155,1973.1,1972.9,5.46435]
[1617795878414,71.5155,1973.1,1972.9,2.90695]
[1617795879008,2.90695,1973.0,1972.9,2.90695]
[1617795879209,5.45145,1973.0,1970.0,2.8963]
[1617795879409,5.45145,1973.0,1968.9,18.0735]
[1617795880109,5.45145,1973.0,1970.3,2.0]
[1617795880609,35.45145,1973.0,1970.3,2.0]
[1617795880812,76.4655,1972.0,1970.2,2.0]
[1617795881011,79.0437,1972.0,1971.2,2.90695]
[1617795881730,79.0437,1972.0,1970.2,2.0]
[1617795882312,109.0437,1972.0,1970.2,2.0]
[1617795883011,79.0437,1972.0,1970.9,2.90695]
[1617795883834,76.4655,1972.0,1970.9,2.90695]
[1617795884014,12.8766,1972.9,1970.9,5.78545]
[1617795884273,58.3591,1972.7,1970.9,5.78545]
[1617795885016,58.3591,1972.7,1971.6,2.90695]
[1617795885017,2.90695,1972.0,1971.6,2.90695]
[1617795885216,2.90695,1972.0,1970.9,2.8785]
[1617795885417,5.48845,1972.0,1970.2,2.0]
[1617795885617,80.4809,1971.6,1970.2,2.0]
[1617795885819,82.4764,1971.6,1970.2,2.0]
[1617795887118,82.4764,1971.6,1971.1,2.90695]
[1617795887520,82.4764,1971.6,1970.2,2.0]
[1617795888221,1.9955,1971.6,1970.2,2.0]
[1617795888421,77.3992,1970.5,1970.2,2.0]
[1617795888623,79.9317,1970.5,1970.2,2.0]
[1617795888922,30.0,1970.4,1967.4,2.571]
[1617795889124,30.0,1970.4,1968.7,2.90695]
[1617795889422,32.0,1970.4,1968.7,2.90695]
[1617795890421,107.3992,1970.5,1968.7,2.90695]
[1617795891022,107.3992,1970.5,1969.4,2.90695]
[1617795891226,107.3992,1970.5,1967.5,2.0]
[1617795891425,110.0172,1970.5,1967.5,2.0]
[1617795891625,110.0172,1970.5,1966.9,2.0]
[1617795891932,32.618,1970.5,1966.9,2.0]
[1617795892124,66.5056,1969.2,1966.9,2.0]
[1617795892425,68.8567,1969.2,1966.9,2.0]
[1617795892724,98.8567,1969.2,1966.9,2.0]
[1617795893927,68.8567,1969.2,1966.9,2.0]
[1617795894191,66.5056,1969.2,1966.9,2.0]
[1617795894526,66.5056,1969.2,1965.9,1.0209]
[1617795895026,2.90695,1968.7,1968.6,2.90695]
[1617795895228,2.90695,1968.7,1968.6,4.79595]
[1617795895427,15.0548,1970.4,1968.6,4.79595]
[1617795895428,13.0548,1970.4,1968.6,4.79595]
[1617795895662,81.9249,1969.9,1968.6,4.79595]
[1617795896451,81.9249,1969.9,1968.6,2.90695]
[1617795896830,114.682,1969.9,1968.6,2.90695]
[1617795897029,114.682,1969.9,1968.4,2.90695]
[1617795897231,30.0,1969.7,1968.4,2.90695]
[1617795897629,30.0,1969.7,1966.9,59.9987]
[1617795898032,32.0,1969.7,1966.9,59.9987]
[1617795898232,30.0,1969.7,1967.0,2.0]
[1617795898734,32.0,1969.7,1967.0,2.0]
[1617795899133,32.0,1969.7,1968.7,2.90695]
[1617795899134,30.0,1969.7,1968.7,2.90695]
[1617795899334,81.9249,1969.9,1968.7,2.90695]
[1617795899534,111.9249,1969.9,1968.7,2.90695]
[1617795900134,32.0,1969.8,1968.7,2.90695]
[1617795900333,34.8559,1969.8,1968.7,2.90695]
[1617795900542,34.8559,1969.8,1967.0,4.8872]
[1617795900834,34.8559,1969.8,1967.0,3.0153]
[1617795901033,34.8559,1969.8,1965.4,15.5992]
[1617795901337,2.90695,1968.0,1965.5,2.0]
[1617795901537,5.02155,1968.0,1965.5,2.0]
[1617795901737,35.02155,1968.0,1965.5,2.0]
[1617795902140,62.9135,1967.3,1965.5,2.0]
[1617795902449,65.5787,1967.3,1965.5,2.0]
[1617795902850,65.5787,1967.3,1965.4,2.571]
[1617795903244,65.5787,1967.3,1967.2,2.90695]
[1617795904046,65.5787,1967.3,1965.4,2.571]
[1617795905145,65.5787,1967.3,1966.4,2.90695]
[1617795905347,65.5787,1967.3,1965.4,2.571]
[1617795906451,65.5787,1967.3,1964.1,2.571]
[1617795907349,65.5787,1967.3,1966.1,2.90695]
[1617795907648,62.9135,1967.3,1966.1,2.90695]
[1617795908348,62.9135,1967.3,1966.1,5.46935]
[1617795909248,13.7981,1968.3,1967.2,2.90695]
[1617795909448,80.9668,1968.2,1967.2,5.55955]
[1617795910348,84.0482,1968.2,1967.2,5.55955]
[1617795910548,84.0482,1968.2,1967.2,2.90695]
[1617795910849,84.0482,1968.2,1964.3,13.0973]
[1617795911148,79.8424,1966.7,1963.5,8.6815]
[1617795911448,82.7083,1966.7,1965.9,2.90695]
[1617795911850,82.7083,1966.7,1963.6,2.0]
[1617795912048,82.7083,1966.7,1963.5,7.669]
[1617795912349,2.0,1966.6,1963.5,2.571]
[1617795912549,112.7083,1966.7,1963.5,2.571]
[1617795912750,77.4838,1965.0,1963.5,2.571]
[1617795912950,80.2238,1965.0,1963.5,2.571]
[1617795913351,80.2238,1965.0,1963.1,2.0]
[1617795913352,80.2238,1965.0,1964.4,2.90695]
[1617795913551,80.2238,1965.0,1962.1,16.201]
[1617795913768,80.2238,1965.0,1962.2,2.0]
[1617795914754,2.74,1965.0,1962.1,13.65]
[1617795914953,66.1024,1963.5,1962.1,0.02]
[1617795915182,66.1024,1963.5,1961.7,2.0]
[1617795915183,68.9795,1963.5,1961.7,2.0]
[1617795915369,68.9795,1963.5,1963.4,2.90695]
[1617795915554,2.8771,1963.5,1963.4,2.90695]
[1617795916156,66.0251,1964.7,1963.4,2.90695]
[1617795916658,66.0251,1964.7,1963.4,4.90695]
[1617795917056,66.0251,1964.7,1963.4,6.78535]
[1617795917357,66.0251,1964.7,1964.6,2.90695]
[1617795917557,1.52472155,1970.5,1964.6,5.74705]
[1617795917757,69.6151,1965.8,1964.6,5.74705]
[1617795918756,69.6151,1965.8,1964.6,2.90695]
[1617795919400,72.3031,1965.8,1963.4,2.571]
[1617795920557,32.688,1965.8,1963.4,2.571]
[1617795920856,77.4739,1965.0,1962.5,17.7774]
[1617795921057,80.2443,1965.0,1962.5,2.571]
[1617795921457,80.2443,1965.0,1964.0,2.90695]
[1617795922259,77.4739,1965.0,1964.0,2.90695]
[1617795922759,79.4739,1965.0,1962.5,2.571]
[1617795922959,79.7586,1965.0,1962.1,13.622]
[1617795923360,79.7586,1965.0,1963.6,2.90695]
[1617795923960,79.7586,1965.0,1962.3,1.9629]
[1617795924762,107.4739,1965.0,1962.3,1.9629]
[1617795924961,112.4281,1965.0,1960.8,16.0086]
[1617795925360,110.4281,1965.0,1962.9,2.90695]
[1617795926461,110.4281,1965.0,1961.0,2.6794]
[1617795926663,30.0,1964.8,1961.0,2.6794]
[1617795926861,30.0,1964.6,1960.6,2.0]
[1617795927161,76.5661,1963.6,1959.4,14.0626]
[1617795927362,78.6374,1963.6,1962.1,2.90695]
[1617795927662,108.6374,1963.6,1959.7,2.0]
[1617795928463,2.0,1963.5,1959.7,2.0]
[1617795928664,30.0,1963.4,1959.7,2.0]
[1617795928864,32.0,1963.3,1959.7,2.0]
[1617795929267,30.0,1963.4,1959.5,2.0]
[1617795929466,30.0,1963.3,1961.3,2.90695]
[1617795930067,30.0,1963.3,1959.4,14.0626]
[1617795930285,30.0,1963.3,1958.6,2.0]
[1617795930491,30.0,1961.5,1958.6,2.0]
[1617795930671,32.3279,1961.5,1958.6,2.0]
[1617795930999,32.3279,1961.5,1957.5,2.571]
[1617795931268,32.3279,1961.5,1956.4,27.8231]
[1617795931269,32.3279,1961.5,1956.4,26.7231]
[1617795931569,2.90695,1960.1,1959.2,2.90695]
[1617795931770,4.89415,1960.1,1959.2,2.90695]
[1617795932168,4.89415,1960.1,1957.1,2.0]
[1617795932368,61.6089,1958.8,1957.2,1.0099]
[1617795932569,64.2146,1958.8,1957.1,2.0]
[1617795932768,64.2146,1958.8,1955.6,13.1209]
[1617795932968,64.2146,1958.8,1955.7,2.0]
[1617795932969,2.6057,1958.8,1955.7,2.0]
[1617795933172,2.6057,1958.8,1957.9,1.04432088]
[1617795933379,2.90695,1958.0,1957.9,1.04432088]
[1617795933568,5.54695,1958.0,1957.9,1.04432088]
[1617795934070,2.64,1958.0,1957.9,1.04432088]
[1617795935670,5.54695,1958.0,1957.9,1.04432088]
[1617795936270,68.291,1958.6,1957.9,1.04432088]
[1617795937571,2.90695,1958.0,1957.9,3.95127088]
[1617795937772,5.75655,1958.0,1957.9,3.95127088]
[1617795938271,5.75655,1958.0,1957.9,1.04432088]
[1617795939373,2.8496,1958.0,1957.9,1.04432088]
[1617795939890,2.90695,1958.3,1957.9,1.04432088]
[1617795940129,68.291,1958.6,1957.9,1.04432088]
[1617795941579,82.9248,1961.2,1957.9,1.04432088]
[1617795941580,0.01248051,1969.4,1958.5,2.90695]
[1617795941799,58.6637,1960.5,1958.5,2.90695]
[1617795943615,88.6637,1960.5,1958.4,2.1293]
[1617795943780,88.6637,1960.5,1957.9,1.04432088]
[1617795944080,30.0,1960.5,1957.9,1.04432088]
[1617795944281,101.1301,1959.0,1957.9,0.61762088]
[1617795944480,103.1767,1959.0,1957.9,0.61762088]
[1617795944882,73.1767,1959.0,1957.9,0.61762088]
[1617795945081,30.0,1958.9,1957.9,0.61762088]
[1617795945381,73.1767,1959.0,1957.9,0.61762088]
[1617795945581,2.90695,1958.0,1957.9,0.61762088]
[1617795945781,5.93245,1958.0,1957.9,0.61762088]
[1617795945982,3.0255,1958.0,1957.9,0.61762088]
[1617795946882,71.1301,1959.0,1957.9,0.61762088]
[1617795947383,71.1301,1959.0,1957.9,3.47442088]
[1617795947582,71.1301,1959.0,1958.9,2.90695]
[1617795948091,66.5488,1959.8,1958.9,2.90695]
[1617795948985,66.5488,1959.8,1957.9,3.47442088]
[1617795949186,66.5488,1959.8,1957.9,0.61762088]
[1617795949484,2.90695,1958.3,1958.2,2.90695]
[1617795950084,14.2369,1959.7,1958.2,2.90695]
[1617795950290,66.5488,1959.8,1958.2,2.90695]
[1617795951289,66.5488,1959.8,1958.2,4.84005]
[1617795951494,2.90695,1959.4,1959.1,2.90695]
[1617795952097,66.5488,1959.8,1959.1,2.90695]
[1617795952292,66.5488,1959.8,1959.1,5.90665]
[1617795952497,66.5488,1959.8,1959.1,2.9997]
[1617795952693,66.5488,1959.8,1957.9,0.61762088]
[1617795952894,69.0866,1959.8,1957.9,0.61762088]
[1617795953594,69.0866,1959.8,1958.7,2.90695]
[1617795953794,66.5488,1959.8,1958.7,2.90695]
[1617795955700,66.5488,1959.8,1958.6,1.9301]
[1617795955701,66.5488,1959.8,1959.7,2.90695]
[1617795955898,65.0698,1961.1,1959.7,5.85985]
[1617795957702,65.0698,1961.1,1961.0,2.90695]
[1617795957902,14.1539,1963.3,1961.0,5.98065]
[1617795958202,13.6633,1963.3,1961.0,5.98065]
[1617795959309,15.19360952,1963.3,1961.0,5.98065]
[1617795959705,1.53030952,1963.3,1962.8,2.90695]
[1617795959908,1.53030952,1963.3,1962.8,5.37245]
[1617795960307,1.53030952,1963.3,1962.8,2.4655]
[1617795960907,1.53030952,1963.3,1962.3,2.3564]
[1617795961508,64.4486,1963.6,1962.3,2.3564]
[1617795961707,64.4486,1963.6,1962.6,2.90695]
[1617795962910,64.4486,1963.6,1962.3,2.3564]
[1617795963509,64.4486,1963.6,1961.0,3.0737]
[1617795963809,64.4486,1963.6,1962.0,2.90695]
[1617795964110,64.4486,1963.6,1962.0,5.40935]
[1617795965313,14.1154,1964.6,1962.0,5.40935]
[1617795965713,14.1154,1964.6,1963.2,2.90695]
[1617795965916,72.8242,1965.2,1963.2,5.10725]
[1617795967618,72.8242,1965.2,1964.7,2.90695]
[1617795967821,13.4805,1965.6,1964.7,5.39885]
[1617795968018,0.02,1965.4,1964.7,5.39885]
[1617795968526,57.3089,1966.5,1964.7,5.39885]
[1617795968923,1.52848329,1965.7,1964.7,5.39885]
[1617795969617,1.52848329,1965.7,1965.6,2.90695]
[1617795969618,4.43543329,1965.7,1965.6,2.90695]
[1617795969817,1.52848329,1965.7,1965.6,5.84595]
[1617795970818,57.3089,1966.5,1965.6,5.84595]
[1617795971118,2.0,1967.7,1965.6,5.84595]
[1617795971618,2.90695,1966.3,1965.9,2.90695]
[1617795971817,13.7367,1968.0,1965.9,2.90695]
[1617795972117,0.02,1967.8,1965.9,2.90695]
[1617795973823,0.02,1967.8,1966.7,2.90695]
[1617795974117,0.02,1967.8,1964.7,2.4919]
[1617795974317,2.4357,1967.8,1954.1,5.11048344]
[1617795974547,2.4157,1967.8,1954.1,5.11048344]
[1617795974818,2.0,1967.7,1964.1,2.0]
[1617795975019,2.0,1967.7,1964.1,4.4982]
[1617795975218,13.9059,1967.6,1964.1,4.4982]
[1617795975819,13.9059,1967.6,1964.1,2.4982]
[1617795977019,2.0,1967.5,1964.1,3.5224]
[1617795977420,13.9059,1967.6,1964.1,2.4982]
[1617795977622,2.90695,1966.3,1966.2,2.90695]
[1617795978023,14.9156,1967.6,1966.2,3.92035]
[1617795978226,67.972,1968.2,1966.1,2.9762]
[1617795978923,67.972,1968.2,1964.7,3.0055]
[1617795979124,67.972,1968.2,1964.1,2.4982]
[1617795979125,2.0,1968.1,1964.1,2.4982]
[1617795979323,67.972,1968.2,1964.1,2.4982]
[1617795979824,67.972,1968.2,1966.2,2.90695]
[1617795980131,67.972,1968.2,1965.7,2.1936]
[1617795980326,2.0,1968.1,1965.7,2.1936]
[1617795980725,67.972,1968.2,1965.7,2.1936]
[1617795980927,30.0,1968.1,1965.7,3.2054]
[1617795981126,33.0306,1968.1,1965.7,1.0118]
[1617795981426,30.0,1967.9,1964.0,1.0122]
[1617795981728,3.0306,1968.1,1963.6,2.90695]
[1617795981729,2.90695,1964.1,1963.6,2.90695]
[1617795982160,1.66655,1964.1,1963.6,2.90695]
[1617795982569,3.0792,1965.3,1963.6,2.90695]
[1617795983140,3.0792,1965.3,1963.6,1.0111]
[1617795983330,3.0792,1965.3,1962.7,2.0]
[1617795983728,2.90695,1964.3,1964.2,2.90695]
[1617795984028,2.7948,1966.2,1964.2,2.90695]
[1617795984330,2.7948,1966.2,1964.2,5.11665]
[1617795984538,2.0,1966.6,1964.2,5.11665]
[1617795984766,57.7812,1966.7,1964.2,5.11665]
[1617795985030,1.9902,1968.8,1964.2,5.11665]
[1617795985229,1.0279,1968.1,1964.2,7.11665]
[1617795985642,1.0279,1968.1,1964.2,4.2097]
[1617795986134,2.90695,1965.9,1965.8,2.90695]
[1617795986329,2.90695,1965.9,1965.8,2.4544]
[1617795986565,13.7591,1968.6,1965.8,2.4544]
[1617795986566,2.0,1968.3,1965.8,2.4544]
[1617795988232,13.7591,1968.6,1966.6,2.90695]
[1617795988432,81.0394,1968.7,1966.6,5.07775]
[1617795989034,67.8567,1968.7,1966.6,5.07775]
[1617795989333,68.8618,1968.7,1966.6,5.07775]
[1617795989536,1.0221,1969.4,1966.6,5.07775]
[1617795989735,58.0478,1969.6,1966.6,5.07775]
[1617795990035,30.0,1969.4,1966.6,5.07775]
[1617795990237,2.0,1969.3,1966.9,2.90695]
[1617795990737,3.0167,1969.3,1966.6,2.1708]
[1617795991337,3.0167,1969.3,1965.8,2.4544]
[1617795991538,3.0167,1969.3,1965.3,78.5157]
[1617795991738,14.0396,1969.3,1965.3,78.5157]
[1617795992140,2.90695,1967.1,1966.8,2.90695]
[1617795992442,2.90695,1967.1,1966.8,5.70955]
[1617795994142,2.90695,1967.3,1967.0,2.90695]
[1617795994342,14.0234,1969.3,1967.0,2.90695]
[1617795994544,13.0229,1969.3,1967.0,2.90695]
[1617795995445,58.0478,1969.6,1967.0,2.90695]
[1617795995845,1.0157,1969.6,1967.0,2.90695]
[1617795996044,1.0157,1969.6,1967.0,3.93475]
[1617795996345,14.033,1970.3,1968.8,2.90695]
[1617795996649,12.716,1973.8,1968.8,5.99585]
[1617795996650,14.0889,1971.6,1968.8,5.99585]
[1617795996844,27.8715,1971.6,1968.8,5.99585]
[1617795997552,57.8715,1971.6,1968.8,3.0889]
[1617795997750,30.0,1971.5,1968.8,3.0889]
[1617795997948,2.0,1971.4,1968.4,2.6739]
[1617795998150,2.90695,1968.5,1968.4,5.58085]
[1617795998349,2.90695,1968.5,1968.4,2.6739]
[1617795999851,2.90695,1968.5,1966.8,2.8026]
[1617796000051,2.90695,1968.5,1966.6,73.0164]
[1617796000253,2.90695,1968.5,1967.9,2.90695]
[1617796000605,2.90695,1968.5,1967.9,5.48865]
[1617796002268,2.90695,1968.5,1968.3,2.90695]
[1617796002493,2.90695,1968.5,1968.3,3.4077]
[1617796002756,3.92475,1968.5,1968.3,2.3775]
[1617796003056,2.90695,1968.5,1968.3,2.3775]
[1617796003256,1.012,1970.0,1968.3,2.3775]
[1617796003257,1.012,1970.0,1968.4,2.0]
[1617796003555,2.0,1971.3,1968.3,2.3775]
[1617796003759,2.0,1971.3,1968.3,3.3849]
[1617796003956,32.0,1971.3,1968.3,5.3849]
[1617796004158,44.8175,1971.3,1969.5,2.90695]
[1617796004457,44.8175,1971.3,1969.5,1.9919]
[1617796005059,12.8175,1971.3,1969.5,1.9919]
[1617796005258,2.0,1971.6,1969.5,1.9919]
[1617796005699,1.01,1972.9,1969.5,1.9919]
[1617796006158,0.02,1972.2,1969.5,1.9919]
[1617796006359,1.028,1972.2,1970.0,2.90695]
[1617796006560,1.008,1972.2,1970.0,5.70815]
[1617796006761,0.02,1972.4,1970.0,5.70815]
[1617796007761,0.02,1972.4,1970.0,6.72705]
[1617796008267,0.02,1972.4,1971.0,2.90695]
[1617796008587,0.02,1972.4,1971.0,5.99685]
[1617796008962,0.02,1972.4,1971.0,3.0899]
[1617796009562,0.02,1972.4,1970.2,60.6088]
[1617796010264,2.90695,1971.2,1970.8,2.90695]
[1617796010467,2.90695,1971.2,1970.8,5.18045]
[1617796010668,0.02,1972.4,1970.8,5.18045]
[1617796011463,16.0096,1973.7,1970.8,5.18045]
[1617796011663,0.02,1972.2,1970.8,5.18045]
[1617796012116,0.02,1972.2,1970.8,6.19005]
[1617796012288,0.02,1972.2,1972.0,2.90695]